Cogmind - Beta 13 @@@ ROGUE MODE // 2024.04.20 @ 16:58:36 Player: Miguell Result: Destroyed by G-47 Trooper with Particle Gun Performance ------------- Evolutions (0) 0 Regions Visited (2) 400 Robots Destroyed (10) 50 Value Destroyed (182) 182 Prototype IDs (0) 0 Alien Tech Used (0) 0 Bonus (0) 0 TOTAL SCORE: 632 Bonus ------- None Cogmind --------- Core Integrity 0/250 Matter 264/300 Energy 148/160 System Corruption 0% Temperature Warning (347) Movement Treading (160) Location -10/Mines Parts ------- > --- POWER (1) -------- Light Nuclear Core > --- PROPULSION (2) --- Light Treads Light Treads > --- UTILITY (2) ------ Small Storage Unit Seismic Detector > --- WEAPON (2) ------- Light Assault Rifle Mining Laser > --- INVENTORY (8) ---- Ion Engine Light Ion Engine Improved Heat Sink Medium Matter Pod (0) Medium Matter Pod (49) Mining Laser Peak State ------------ > --- POWER ------------ Light Nuclear Core > --- PROPULSION ------- Light Treads Light Treads > --- UTILITY ---------- Small Storage Unit Medium Matter Pod > --- WEAPON ----------- Light Assault Rifle Mining Laser > --- INVENTORY -------- Ion Engine Light Ion Engine Aluminum Leg Aluminum Leg Improved Heat Sink Medium Matter Pod High-capacity Matter Pod Mining Laser [Rating: 10] Favorites ----------- Power Ion Engine Engine Ion Engine Power Core Light Nuclear Core Propulsion Aluminum Leg Treads Light Treads Leg Aluminum Leg Utility Small Storage Unit Device Seismic Detector Storage Small Storage Unit Weapon Light Assault Rifle Energy Gun EM Pulse Gun Ballistic Gun Light Assault Rifle Special Weapon Mining Laser Build | -11 -10 -10 ------- Run | Yrd Mat Min Slots Evolved . | . . . Power . | . . . Propulsion . | . . . Utility . | . . . Weapon . | . . . Parts Attached 20 | 7 9 4 Power 3 | 1 2 . Engine 2 | 1 1 . Core 1 | . 1 . Reactor . | . . . Propulsion 4 | 2 2 . Treads 2 | . 2 . Leg 2 | 2 . . Wheel . | . . . Hover . | . . . Flight . | . . . Utility 3 | 1 1 1 Device 1 | . . 1 Storage 2 | 1 1 . Processor . | . . . Hackware . | . . . Protection . | . . . Artifact . | . . . Weapon 10 | 3 4 3 Energy Gun 1 | . 1 . Energy Cannon . | . . . Ballistic Gun 6 | 3 2 1 Ballistic Cannon . | . . . Launcher . | . . . Special Weapon 3 | . 1 2 Impact Weapon . | . . . Slashing Weapon . | . . . Piercing Weapon . | . . . Special Melee Weapon . | . . . Unidentified Prototypes . | . . . Parts Lost 5 | . 5 . Power 1 | . 1 . Propulsion . | . . . Utility . | . . . Weapon 4 | . 4 . Highest Loss Streak 4 | . 4 . To Critical Strikes . | . . . Average Slot Usage (%) 85 | . 79 94 Engine 4 | . 6 . Core 9 | . 7 14 Treads 19 | . 14 28 Leg 8 | . 14 . Storage 21 | . 19 25 Energy Gun 1 | . 1 . Ballistic Gun 13 | . 13 13 Special Weapon 4 | . 1 9 Naked Turns . | . . . Heaviest Build 14 | 13 14 14 Greatest Support 40 | 20 40 40 Greatest Overweight (x) 1 | 1 . . Average Overweight (x) . | . . . Largest Inventory Capacity 8 | 8 8 8 Average Capacity 7 | 7 8 8 Most Carried 8 | 6 8 8 Average Carried 4 | 3 5 7 Final Capacity 8 | 8 8 8 Final Carried 8 | 4 8 6 Class Distribution -------------------- 100% | Mutant Dominant Class ---------------- Mutant | -10/Materials Mutant | -10/Mines Resources | -11 -10 -10 ----------- Run | Yrd Mat Min Matter Collected 465 | 235 178 52 Remotely . | . . . Salvage Created 230 | . 181 49 Parts 21 | . 15 6 Haulers Intercepted . | . . . Recyclers Shooed 1 | . 1 . Parts Field Recycled . | . . . Retrieved Matter . | . . . Parts Self-Destructed . | . . . Prevented . | . . . Kills | -11 -10 -10 ------- Run | Yrd Mat Min Combat Hostiles Destroyed 9 | . 8 1 Guns 8 | . 8 . Cannons 1 | . . 1 Classes Destroyed 3 | . 2 1 Tunneler 1 | . . 1 Swarmer 6 | . 6 . Grunt 3 | . 2 1 Best Kill Streak 6 | . 6 1 Combat Bots Only 6 | . 6 1 Max Kills in Single Turn 2 | . 2 1 Gunslinging 1 | . 1 . Exploded . | . . . Melee . | . . . Uniques/NPCs Destroyed . | . . . Combat | -11 -10 -10 -------- Run | Yrd Mat Min Hostile Shots Fired 111 | . 94 17 Missed 32 | . 30 2 Damage Taken 925 | . 717 208 Core 250 | . 206 44 Absorbed by Shields . | . . . Core Remaining (%) 100 | 100 . . Volleys Fired 41 | . 29 12 Largest 2 | . 2 2 Hottest 200 | . 100 200 Shots Fired 65 | . 46 19 Gun 50 | . 40 10 Cannon . | . . . Launcher . | . . . Special 15 | . 6 9 Kinetic 38 | . 28 10 Thermal 15 | . 6 9 Explosive . | . . . Electromagnetic 12 | . 12 . Robot Hit Streak 4 | . 4 2 Robot Miss Streak 4 | . 3 4 Penetration Max . | . . . Secondary Targets 2 | . 2 . Max Gunslinging Chain 1 | . 1 . Shots Hit Robots 27 | . 21 6 Core Hits 16 | . 12 4 Critical Kills . | . . . Critical Parts Destroyed . | . . . Critical Strikes . | . . . Melee Attacks . | . . . Impact . | . . . Slashing . | . . . Piercing . | . . . Sneak Attacks . | . . . Combat Hostiles . | . . . Follow-up Attacks . | . . . Damage Inflicted 286 | . 221 65 Guns 262 | . 221 41 Cannons . | . . . Explosions . | . . . Melee . | . . . Ramming . | . . . Kinetic 238 | . 197 41 Thermal 24 | . . 24 Explosive . | . . . Electromagnetic 24 | . 24 . Impact . | . . . Slashing . | . . . Piercing . | . . . Highest Corruption . | . . . Average Corruption . | . . . Corruption Purged . | . . . Corruption Blocked . | . . . Overload Shots . | . . . Overflow Damage . | . . . Projectiles . | . . . Explosions . | . . . Melee . | . . . Knockbacks . | . . . Impact . | . . . Kinetic . | . . . Secondary . | . . . Self-Inflicted Damage . | . . . Shots . | . . . Rammed . | . . . Targets Rammed . | . . . Kicked . | . . . Crushed . | . . . Highest Temperature 338 | . 49 338 Average Temperature 72 | . 19 146 Received Heat Transfer 369 | . 240 129 Effects 3 | . . 3 Interference 2 | . . 2 Short Circuit 1 | . . 1 Siege Activations . | . . . Robots Corrupted . | . . . Combat Hostiles . | . . . Parts Fried . | . . . Impact Corruptions . | . . . Robots Melted . | . . . Combat Hostiles . | . . . Parts Melted . | . . . Heat Transferred 50 | . . 50 Parts Sabotaged . | . . . Parts Stolen . | . . . Parts Stripped . | . . . Power Chain Reactions . | . . . Alert | -11 -10 -10 ------- Run | Yrd Mat Min Peak Influence 165 | . 165 32 Initial . | . . . Average 13 | . 95 3 Maximum Alert Level . | . . . Low Security (%) 100 | 100 100 100 Level 1 . | . . . Level 2 . | . . . Level 3 . | . . . Level 4 . | . . . Level 5 . | . . . High Security . | . . . Max Security . | . . . Squads Dispatched 1 | . 1 . Investigation . | . . . Extermination . | . . . Reinforcement 1 | . 1 . Assault . | . . . Garrison . | . . . Intercept . | . . . Searches Triggered . | . . . Construction Impeded . | . . . Haulers Reinforced . | . . . Active Scanning Responses . | . . . Cargo Convoy Interrupts . | . . . Stealth | -11 -10 -10 --------- Run | Yrd Mat Min Distress Signals . | . . . Communications Jammed . | . . . Distress Signals . | . . . Times Spotted 11 | . 9 2 Peak Tracking Total 6 | . 6 2 Tactical Retreats 1 | . 1 . Traps | -11 -10 -10 ------- Run | Yrd Mat Min Traps Triggered . | . . . Indirectly . | . . . Trap Hack Attempts . | . . . Triggered . | . . . Disarmed . | . . . Reprogrammed . | . . . Reused . | . . . Traps Extracted . | . . . Installed . | . . . Triggered . | . . . Machines | -11 -10 -10 ---------- Run | Yrd Mat Min Machines Disabled . | . . . Max in Single Turn . | . . . Machines Repaired . | . . . Machines Dismantled . | . . . Machines Sabotaged . | . . . Overloaded Fab Kills . | . . . Hacking | -11 -10 -10 --------- Run | Yrd Mat Min Machines Accessed 1 | . 1 . Terminals 1 | . 1 . Fabricators . | . . . Repair Stations . | . . . Recycling Units . | . . . Scanalyzers . | . . . Garrison Access . | . . . Total Hacks 2 | . 2 . Successful 1 | . 1 . Failed 1 | . 1 . Catastrophic . | . . . Database Lockouts . | . . . Manual . | . . . Terminals 2 | . 2 . Fabricators . | . . . Repair Stations . | . . . Recycling Units . | . . . Scanalyzers . | . . . Garrison Access . | . . . Terminal Hacks 1 | . 1 . Hauler Manifests 1 | . 1 . Fabricator Hacks . | . . . Repair Station Hacks . | . . . Recycling Unit Hacks . | . . . Scanalyzer . | . . . Garrison Access Hacks . | . . . Unauthorized Hacks . | . . . Terminals . | . . . Fabricators . | . . . Repair Stations . | . . . Recycling Units . | . . . Scanalyzers . | . . . Garrison Access . | . . . Data Cores Recovered . | . . . Used . | . . . Hacking Detections 1 | . 1 . Full Trace Events . | . . . Feedback Events . | . . . Feedback Blocked . | . . . Robot Schematics Acquired . | . . . Robots Built . | . . . Authchips . | . . . Time . | . . . Total Robot Build Rating . | . . . Part Schematics Acquired . | . . . Parts Built . | . . . Authchips . | . . . Time . | . . . Total Part Build Rating . | . . . Parts Repaired . | . . . Time . | . . . Parts Recycled . | . . . Recycled Matter . | . . . Retrieved Matter . | . . . Retrieved Components . | . . . Parts Scanalyzed . | . . . Part Schematics Acquired . | . . . Parts Damaged . | . . . Bothacking | -11 -10 -10 ------------ Run | Yrd Mat Min Used RIF Installer . | . . . Robots Hacked . | . . . Non-combat . | . . . Combat . | . . . Robot Hacks Applied . | . . . Relay Couplers Released . | . . . Fabnet Peak Effective % . | . . . Robots Rewired . | . . . Allies Hacked . | . . . Hacks Repelled . | . . . Allies | -11 -10 -10 -------- Run | Yrd Mat Min Total Allies . | . . . Largest Group . | . . . Highest-Rated Group . | . . . Highest-Rated Ally . | . . . Total Orders . | . . . Ally Attacks . | . . . Total Damage . | . . . Kills . | . . . Allies Corrupted . | . . . Allies Melted . | . . . Intel | -11 -10 -10 ------- Run | Yrd Mat Min Robot Analysis Total . | . . . Derelict Logs Recovered 1 | . . 1 Drone Launches . | . . . Drone Recoveries . | . . . Exploration | -11 -10 -10 ------------- Run | Yrd Mat Min Turns Passed 3916 | 3032 539 345 Spaces Moved 1129 | 651 299 179 Core 15 | 15 . . Treads 335 | . 156 179 Legs 779 | 636 143 . Wheels . | . . . Hover . | . . . Flight . | . . . Fastest Speed 50 | 50 120 160 Average Speed 131 | 119 140 160 Slowest Speed 160 | 120 160 160 Overloaded Moves . | . . . Propulsion Burnouts . | . . . Robots Hopped . | . . . Cave-ins Triggered . | . . . Exploration Rate (%) 51 | 86 38 31 Regions Visited 2 Branch Regions 1 Pre-discovered Areas . | . . . Known Exits Taken . | . . . Unknown Exits Taken 2 | 1 1 . Scrap Searched 1 | . . 1 Spaces Dug 6 | . 5 1 Terrain Destroyed 13 | . 6 7 Melee . | . . . Projectile 13 | . 6 7 AOE . | . . . Terrain Rammed . | . . . Walls Destroyed . | . . . Machines Disabled . | . . . Actions | -11 -10 -10 --------- Run | Yrd Mat Min Total 3469 | 2905 360 204 Wait 2255 | 2238 13 4 Move 1127 | 650 298 179 Hop . | . . . Pick Up 22 | 10 10 2 Fast Attach . | . . . Attach 12 | 6 5 1 Detach . | . . . Swap 8 | 1 4 3 Drop 4 | . 1 3 Fire 41 | . 29 12 Melee . | . . . Ram . | . . . Kick . | . . . Crush . | . . . Escape Stasis . | . . . Rewire . | . . . Trap . | . . . Miscellaneous . | . . . Route ------- -11/Scrapyard -10/Materials -10/Mines (discovered 2 exits: [*Mat x2]) History --------- Turn | Location | Event 16 | -11/Scrapyard | Discovered new exit (range 15) 3033 | -11/Scrapyard | Entered Materials 3034 | -10/Materials | Build established: Mutant 3184 | -10/Materials | Core integrity fell below 50% 3222 | -10/Materials | Lost 4 parts (1p3w) 3277 | -10/Materials | Core integrity fell below 20% 3353 | -10/Materials | Discovered new exit (range 8) 3572 | -10/Materials | Entered Mines 3790 | -10/Mines | Discovered new exit (range 12) 3889 | -10/Mines | Discovered new exit (range 10) 3917 | -10/Mines | Destroyed by G-47 Trooper with Particle Gun Last Messages --------------- 03841_ Found Wheel. 03841_ Found Lgt. Cannon. 03841_ Found 24 Matter. 03842_ Acquired 24 matter. 03845_ Acquired Hcp. Matter Pod. 03845_ T-07 Excavator is excavating. 03846_ Dropped Hcp. Matter Pod. 03850_ T-07 Excavator destroyed. 03855_ Acquired 28 matter. 03856_ Dropped Aluminum Leg. 03859_ Acquired Seismic Detector. 03889_ EXIT=FOUND 03894_ G-34 Mercenary destroyed. 03898_ U-05 Engineer builds a Wall. 03911_ Overheating: System interference. 03911_ Lgt. Assault Rifle temporarily disabled. 03911_ Seismic Detector temporarily disabled. 03913_ Lgt. Treads broken. 03913_ Overheating: Short circuit. 03914_ R-06 Scavenger collects Hcp. Matter Pod. Map ----- +----------------------------------------------------+ | | | ??????????????????????????????????????????????? | | ??????????????????????????????????????????????? | | ??????????????????????????????????????????????? | | ??????????????????????????????????????????????? | | ??????????????????????????????????????????????? | | ??????????????????????????????????????????????? | | ??????????????????????????????????????????????? | | ??????????????????????????????????????????????? | | ??????????????????????????????????????????????? | | ??????????????????????????????????????????????? | | ??????????????????????????????????????????????? | | ??????????????????????????????????????????????? | | ??????????????????????????????????????????????? | | ??????????????????????????????????????????????? | | ??????????????????????????????????????????????? | | ???????????#####??????????????????????????????? | | ???????????? = #???????????? ?????????????????? | | ????????????#*!#??????????? ?????????????????? | | ????????????#==#??????????? #????????????? | | ????????????#| #??????????"" #????????????? | | ????????????# #?????????""" #????????????? | | ????????????#! #???????? """ < #????????????? | | ????????????#=r#########% ??????????????? | | ?????####???# #u ??????????????????? | | ????## ##??# @g#?????????????????????? | | ????# < #??##### ### ;#?????????????????????? | | ????# ##?????# #?# ! ;#??#?????????????????? | | ????# ##????# ### [ ## ######????????????? | | ????## ##???# ## =! #?????????? | | ?????# ##??# ## #########????????????? | | ?????## ##?# ## [ =#????????????????????? | | ??????## ### ### #???????? ??????????? | | ???????## ## #?## ##??????? ??????????? | | ????????### #??# ##?????? ?????????? | | ??????????## #####??# #?????? ?????????? | | ???????????########??# #????? ?????????? | | ??????????????## ##?# #???? ????????? | | ??????????????# ### #?## ?????????? | | ??????????????# ## ## ????????????? | | ?????????????## ## # #????????????????? | | ?????????????# #?????????????????? | | ?????????????# #?????????????????? | | ?????????????## ## ### #?????????????????? | | ??????????????###### #?? #?????????????????? | | ???????????????????# #??# #????????????????? | | ???????????????????# #???## ???????????????? | | ???????????????????# #?????# ?????????????? | | ???????????????????# #??????# ????????????? | | ?????????????????### #???????# #???????????? | +----------------------------------------------------+ Best States ------------- Heat Dissipation 25 Energy Generation 14 Energy Capacity 250 Matter Stores 349 Matter Capacity 400 Sight Range 16 Terrain Scan Density 10 Evasion (%) 55 Recoil Reduction 2 Item Schematics ----------------- None Robot Schematics ------------------ None Fabricated ------------ Nothing Alien Tech Used ----------------- None Achievements -------------- Shopping List Challenges ------------ None Game ------ Seed ArmoredHelicalBooster Manual? 0 Play Time 00:18:11 Cumulative 1.3 hours Start 2024.04.20 @ 16:42:28 End 2024.04.20 @ 16:58:36 Sessions 1 Manual Loads 0 Difficulty Rogue Special Mode None Game No. 4 Rogue 4 Adventurer 0 Explorer 0 Win Type - Total 0 Types 0/0/0/0/0/0/0/0/0 Lore% 1 Gallery% 5 Achievement% 6 Wizard Run 0 Options --------- Layout 1 ASCII 0 Keyboard 0 Movement Mouse Keybinds 0 Fullscreen 1 Font 24/Smallcaps Map View 50x35 Zoom Use 0% Tactical HUD 1 Map Filters NONE Filters NONE Steam 0 RUN: d7827c67-c102-457c-9a55-244a542ea60a